fUST/lending_fUST_20260106
["ID","MTS","AMOUNT","RATE_DAILY","PERIOD"]
[400528533,1767699039655,-500.11958975,0.00013698,2]
[400528534,1767699039665,-188.11386458,0.00013699,2]
[400528535,1767699039674,-220.37131177,0.00013699,2]
[400528536,1767699039684,-338.10821472,0.00013699,2]
[400528537,1767699039693,-502.2601968,0.00013699,2]
[400528538,1767699039702,-500.0,0.00013699,2]
[400528539,1767699039711,-443.89072638,0.00013699,2]
[400528540,1767699039720,-504.92626039,0.00013699,2]
[400528541,1767699039729,-500.0,0.00013699,2]
[400528542,1767699039738,-501.0386878,0.00013699,2]
[400528543,1767699039747,-501.00450759,0.00013699,2]
[400528544,1767699039757,-500.54517436,0.00013699,2]
[400528545,1767699039766,-634.09365022,0.00013699,2]
[400528547,1767699039776,-500.81877837,0.00013699,2]
[400528548,1767699039786,-505.14600849,0.00013699,2]
[400528549,1767699039795,-151.0,0.00013699,2]
[400528550,1767699039805,-269.211237,0.00013699,2]
[400528551,1767699039814,-352.313829,0.00013699,2]
[400528553,1767699039823,-352.313829,0.00013699,2]
[400528554,1767699039833,-352.313829,0.00013699,2]
[400528555,1767699039842,-352.313829,0.00013699,2]
[400528556,1767699039851,-331.19428532,0.00014084,2]
[400528557,1767699039861,-720.0,0.00014107,2]
[400528558,1767699039870,-1100.25645187,0.00014175,2]
[400528559,1767699039880,-2050.51290374,0.00014175,2]
[400528560,1767699039889,-339.66,0.00014292,2]
[400528561,1767699039898,-543.0403563,0.00014546,2]
[400528562,1767699039909,-3957.668027,0.00014726,2]
[400528563,1767699039918,-587.0,0.00014726,2]
[400528564,1767699039928,-68236.68083992,0.00014882,2]
[400528565,1767699039938,-16800.0,0.00015,2]
[400528566,1767699039947,-1000.0,0.00015,2]
[400528567,1767699039956,-285.754516,0.00015068,2]
[400528568,1767699039966,-382.12,0.00015086,2]
[400528569,1767699039976,-3951.02580749,0.00015397,3]
[400528570,1767699039986,-864.0,0.00015518,2]
[400528571,1767699039995,-424.58,0.0001588,2]
[400528573,1767699040005,-375.02882308,0.00016084,2]
[400528574,1767699040015,-823.0,0.00016162,2]
[400528575,1767699040025,-160.5,0.00016438,2]
[400528576,1767699040035,-160.5,0.00016762,2]
[400528577,1767699040045,-4901.28225936,0.00016807,5]
[400528579,1767699040055,-2423.70186332,0.00016818,2]
[400528580,1767699040065,-195.178594,0.00016905,2]
[400528581,1767699040075,-61162.51963186,0.00017,2]
[400528582,1767699040085,-1000.0,0.00017069,2]
[400528583,1767699040095,-160.5,0.00017086,2]
[400528584,1767699040104,-2423.70186332,0.00017114,2]
[400528585,1767699040114,-2423.70186332,0.0001739,2]
[400528587,1767699040123,-160.5,0.00017409,2]
[400528588,1767699040133,-2423.70186332,0.00017561,2]
[400528589,1767699040143,-160.5,0.00017733,2]
[400528590,1767699040152,-1152.0,0.00017739,2]
[400528591,1767699040165,-2423.70186332,0.00017954,2]
[400528592,1767699040174,-1555.1454269,0.00017998,2]
[400528593,1767699040184,-352.313829,0.00017998,2]
[400528594,1767699040195,-352.313829,0.00017998,2]
[400528595,1767699040205,-352.313829,0.00017998,2]
[400528596,1767699040215,-352.313829,0.00017998,2]
[400528597,1767699040225,-160.5,0.00018057,2]
[400528599,1767699040234,-418.86336085,0.00018084,2]
[400528602,1767699040244,-5851.53871123,0.00018217,8]
[400528604,1767699040253,-2423.70186332,0.00018221,2]
[400528606,1767699040263,-1041.66666667,0.00018229,2]
[400528608,1767699040272,-800.0,0.00018356,7]
[400528610,1767699040281,-160.5,0.00018381,2]
[400528612,1767699040291,-285.754516,0.00018493,2]
[400528615,1767699040301,-255.207,0.00018524,2]
[400528616,1767699040310,-30000.0,0.00018524,2]
[400528619,1767699040320,-265.3494209,0.00018524,2]
[400528621,1767699040330,-500.0,0.00018524,2]
[400528623,1767699040340,-500.0,0.00018524,2]
[400528624,1767699040349,-500.0,0.00018524,2]
[400528626,1767699040358,-500.0,0.00018524,2]
[400528628,1767699040369,-500.0,0.00018524,2]
[400528630,1767699040378,-500.0,0.00018524,2]
[400528631,1767699040388,-500.0,0.00018524,2]
[400528632,1767699040397,-500.0,0.00018524,2]
[400528633,1767699040409,-266.22272294,0.00018524,2]
[400528634,1767699040418,-496.47127164,0.00018524,2]
[400528635,1767699040427,-2398.4119403,0.00018524,2]
[400528636,1767699040437,-151.0,0.00018532,2]
[400528637,1767699040446,-2423.70186332,0.00018604,2]
[400528638,1767699040455,-160.5,0.00018705,2]
[400528639,1767699040465,-2423.70186332,0.00018718,2]
[400528640,1767699040474,-1000.0,0.00018776,2]
[400528642,1767699040607,-244.0,0.00018776,2]
[400528643,1767699040618,-303.44298549,0.000189,2]
[400528644,1767699040628,-303.44298549,0.000189,2]
[400528645,1767699040637,-801.08861546,0.00019,2]
[400528646,1767699040648,-1000.0,0.00019,5]
[400528647,1767699040660,-160.5,0.00019029,2]
[400528648,1767699040670,-2423.70186332,0.00019047,2]
[400528649,1767699040679,-27056.21069384,0.00019072,2]
[400528650,1767699040689,-514.84070869,0.00019072,2]
[400528651,1767699040698,-2487.15318209,0.00019072,2]
[400528652,1767699040708,-303.44298549,0.00019089,2]
[400528653,1767699040717,-2000.0,0.00019108,3]
[400528655,1767699040727,-2000.0,0.00019116,3]
[400528656,1767699040736,-2000.0,0.00019125,3]
[400528657,1767699040745,-2000.0,0.00019125,3]
[400528658,1767699040754,-2000.0,0.00019134,3]
[400528659,1767699040764,-2000.0,0.00019134,3]
[400528660,1767699040774,-2000.0,0.00019143,3]
[400528662,1767699040783,-2000.0,0.00019143,3]
[400528663,1767699040792,-2000.0,0.00019152,3]
[400528664,1767699040802,-2000.0,0.00019152,3]
[400528665,1767699040811,-2000.0,0.0001916,3]
[400528666,1767699040822,-2000.0,0.0001916,3]
[400528667,1767699040832,-2000.0,0.00019169,3]
[400528668,1767699040841,-2000.0,0.00019169,3]
[400528669,1767699040851,-2000.0,0.00019178,3]
[400528670,1767699040860,-2000.0,0.00019178,3]
[400528671,1767699040870,-151.000005,0.00019178,2]
[400528672,1767699040879,-151.0,0.00019178,2]
[400528673,1767699040888,-176.133271,0.00019178,2]
[400528674,1767699040898,-153.743312,0.00019178,2]
[400528675,1767699040908,-28920.58,0.000192,2]
[400528676,1767699040918,-600.0,0.000192,2]
[400528677,1767699040927,-178.0,0.00019205,2]
[400528678,1767699040937,-303.44298549,0.00019278,2]
[400528679,1767699040946,-178.0,0.00019294,2]
[400528681,1767699040955,-2423.70186332,0.000193,2]
[400528682,1767699040965,-160.5,0.00019352,2]
[400528683,1767699040975,-600.93946268,0.000194,2]
[400528684,1767699040985,-800.0,0.00019452,7]
[400528685,1767699040995,-2423.70186332,0.00019462,2]
[400528687,1767699041004,-58884.0,0.00019464,2]
[400528688,1767699041014,-628.0,0.00019465,2]
[400528689,1767699041024,-2145.0,0.00019465,2]
[400528690,1767699041034,-1365.0,0.00019465,2]
[400528691,1767699041044,-381.39277142,0.00019465,2]
[400528692,1767699041053,-1525.57108567,0.00019465,2]
[400528693,1767699041063,-3432.53494275,0.00019465,2]
[400528694,1767699041075,-6102.28434267,0.00019465,2]
[400528695,1767699041086,-9534.81928542,0.00019465,2]
[400528696,1767699041096,-376.93043986,0.00019465,2]
[400528697,1767699041105,-1507.72175943,0.00019465,2]
[400528698,1767699041114,-3392.37395872,0.00019465,2]
[400528699,1767699041125,-6024.85615068,0.00019465,2]
[400528700,1767699041135,-352.313829,0.00019465,2]
[400528701,1767699041144,-352.313829,0.00019465,2]
[400528702,1767699041154,-352.313829,0.00019465,2]
[400528703,1767699041164,-352.313829,0.00019465,2]
[400528705,1767699041174,-901.03763309,0.00019465,2]
[400528706,1767699041183,-3600.54638183,0.00019465,2]
[400528707,1767699041192,-303.44298549,0.00019467,2]
[400528708,1767699041202,-1526.0,0.00019469,2]
[400528709,1767699041212,-2814.13320653,0.000196,2]
[400528710,1767699041221,-777.0,0.000196,2]
[400528711,1767699041230,-533.88981491,0.0001962,2]
[400528712,1767699041240,-2579.17784983,0.0001962,2]
[400528713,1767699041249,-6801.79516311,0.00019627,11]
[400528714,1767699041259,-303.44298549,0.00019656,2]
[400528715,1767699041268,-160.5,0.00019676,2]
[400528716,1767699041278,-101095.51710166,0.000198,2]
[400528717,1767699041287,-800.0,0.00019811,2]
[400528718,1767699041296,-800.0,0.00019828,2]
[400528719,1767699041306,-455.16447824,0.00019845,4]
[400528720,1767699041315,-178.0,0.00019866,2]
[400528721,1767699041325,-2423.70186337,0.00019874,2]
[400528722,1767699041334,-10230.73456472,0.000199,2]
[400528723,1767699041343,-800.0,0.00019924,2]
[400528724,1767699041352,-30488.076007,0.00019937,2]
[400528725,1767699041362,-1235.5288193,0.00019937,2]
[400528726,1767699041371,-8320.7212067,0.00019937,2]
[400528727,1767699041381,-151.0,0.00019937,2]
[400528728,1767699041391,-151.0,0.00019937,2]
[400528729,1767699041400,-151.0,0.00019937,2]
[400528730,1767699041411,-191.004961,0.00019937,2]
[400528731,1767699041420,-151.0,0.00019937,2]
[400528732,1767699041429,-363.402434,0.00019937,2]
[400528733,1767699041438,-363.402434,0.00019937,2]
[400528734,1767699041448,-363.402434,0.00019937,2]
[400528735,1767699041458,-363.402434,0.00019937,2]
[400528736,1767699041467,-153.376724,0.00019937,2]
[400528737,1767699041477,-151.0,0.00019937,2]
[400528738,1767699041486,-151.0,0.00019937,2]
[400528739,1767699041496,-151.0,0.00019937,2]
[400528740,1767699041506,-151.0,0.00019937,2]
[400528741,1767699041516,-178.0,0.00019959,2]
[400528742,1767699041526,-178.0,0.00019965,2]
[400528743,1767699041536,-178.0,0.00019985,2]
[400528744,1767699041545,-160.0,0.00019993,5]
[400528745,1767699041555,-2000.0,0.00019993,7]
[400528746,1767699041564,-237524.11003095,0.0002,2]
[400528747,1767699041579,-33607.43359111,0.0002,2]
[400528748,1767699041590,-368792.98489372,0.0002,2]
[400528749,1767699041667,-4041.85773979,0.00012229,2]
[400528750,1767699041679,-10691.37850794,0.00012229,2]
[400528751,1767699041689,-3435.90441041,0.00012229,2]
[400528813,1767699045451,-6770.58491379,0.00012229,2]
[400528827,1767699046729,-292.34760846,0.00012229,2]
[400530455,1767699420199,155.0,0.00030137,120]
[400531118,1767699585702,476.1,0.00030137,120]
[400531785,1767699730393,5000.0,0.0001,10]
[400531954,1767699784101,-300.0,9.999e-05,2]
[400531955,1767699784126,-7700.0,0.0001,2]
[400531984,1767699809814,155.0,6e-05,2]
[400531989,1767699811394,-1000.0,0.0001,2]
[400532186,1767699891356,1253.9818801,9.117e-05,2]
[400532339,1767700138971,515.95428866,0.00030136,120]
[400532401,1767700237724,-5000.0,9.629e-05,2]
[400532403,1767700237734,-555.0,9.629e-05,2]
[400532405,1767700237743,-275.3584776,9.775e-05,2]
[400532407,1767700237752,-300.0,9.996e-05,2]
[400532409,1767700237761,-300.0,9.996e-05,2]
[400532412,1767700237772,-300.0,9.996e-05,2]
[400532413,1767700237781,-300.0,9.996e-05,2]
[400532416,1767700237791,-1200.0,9.996e-05,2]
[400532417,1767700237800,-500.0,9.996e-05,2]
[400532419,1767700237810,-999.3119379,9.996e-05,2]
[400532421,1767700237819,-169.8622441,9.996e-05,2]
[400532423,1767700237829,-999.3119379,9.996e-05,2]
[400532425,1767700237838,-999.3119379,9.996e-05,2]
[400532427,1767700237848,-999.3119379,9.996e-05,2]
[400532430,1767700237857,-999.3119379,9.996e-05,2]
[400532433,1767700237867,-999.3119379,9.996e-05,2]
[400532435,1767700237876,-999.3119379,9.996e-05,2]
[400532437,1767700237885,-999.3119379,9.996e-05,2]
[400532439,1767700237894,-999.3119379,9.996e-05,2]
[400532440,1767700237904,-999.3119379,9.996e-05,2]
[400532442,1767700237913,-999.3119379,9.996e-05,2]
[400532444,1767700237922,-999.3119379,9.996e-05,2]
[400532446,1767700237931,-999.3119379,9.996e-05,2]
[400532448,1767700237940,-999.3119379,9.996e-05,2]
[400532450,1767700237949,-999.3119379,9.996e-05,2]
[400532452,1767700237958,-999.3119379,9.996e-05,2]
[400532454,1767700237968,-999.3119379,9.996e-05,2]
[400532456,1767700237978,-564.686617,9.996e-05,2]
[400532458,1767700237991,-500.0,9.996e-05,2]
[400532460,1767700238000,-500.0,9.996e-05,2]
[400532462,1767700238010,-500.0,9.996e-05,2]
[400532464,1767700238020,-500.0,9.996e-05,2]
[400532466,1767700238031,-454.69346583,9.996e-05,2]
[400532468,1767700238042,-500.0,9.996e-05,2]
[400532470,1767700238052,-500.0,9.996e-05,2]
[400532472,1767700238063,-500.0,9.996e-05,2]
[400532475,1767700238073,-500.0,9.996e-05,2]
[400532476,1767700238083,-500.0,9.996e-05,2]
[400532478,1767700238093,-500.0,9.996e-05,2]
[400532481,1767700238103,-500.0,9.996e-05,2]
[400532483,1767700238113,-500.0,9.996e-05,2]
[400532485,1767700238123,-500.0,9.996e-05,2]
[400532487,1767700238133,-500.0,9.996e-05,2]
[400532488,1767700238143,-500.0,9.996e-05,2]
[400532490,1767700238153,-500.0,9.996e-05,2]
[400532492,1767700238163,-500.0,9.996e-05,2]
[400532494,1767700238172,-500.0,9.996e-05,2]
[400532496,1767700238182,-500.0,9.996e-05,2]
[400532498,1767700238192,-500.0,9.996e-05,2]
[400532500,1767700238201,-500.0,9.996e-05,2]
[400532501,1767700238211,-500.0,9.996e-05,2]
[400532503,1767700238220,-500.0,9.996e-05,2]
[400532505,1767700238230,-351.62284244,9.996e-05,2]
[400532507,1767700238240,-500.0,9.996e-05,2]
[400532509,1767700238251,-500.0,9.996e-05,2]
[400532511,1767700238260,-500.0,9.996e-05,2]
[400532512,1767700238270,-500.0,9.996e-05,2]
[400532514,1767700238280,-500.0,9.996e-05,2]
[400532516,1767700238290,-500.0,9.996e-05,2]
[400532518,1767700238300,-500.0,9.996e-05,2]
[400532520,1767700238310,-999.3119379,9.996e-05,2]
[400532522,1767700238320,-500.0,9.996e-05,2]
[400532524,1767700238330,-500.0,9.996e-05,2]
[400532526,1767700238340,-500.0,9.996e-05,2]
[400532528,1767700238350,-500.0,9.996e-05,2]
[400532529,1767700238360,-500.0,9.996e-05,2]
[400532531,1767700238369,-500.0,9.996e-05,2]
[400532533,1767700238380,-500.0,9.996e-05,2]
[400532535,1767700238390,-500.0,9.996e-05,2]
[400532537,1767700238400,-500.0,9.996e-05,2]
[400532539,1767700238409,-500.0,9.996e-05,2]
[400532541,1767700238419,-500.0,9.996e-05,2]
[400532542,1767700238429,-500.0,9.996e-05,2]
[400532544,1767700238439,-356.91869398,9.996e-05,2]
[400532545,1767700238448,-500.0,9.996e-05,2]
[400532547,1767700238458,-280.80786049,9.996e-05,2]
[400532548,1767700238468,-500.0,9.996e-05,2]
[400532550,1767700238477,-500.0,9.996e-05,2]
[400532551,1767700238487,-500.0,9.996e-05,2]
[400532553,1767700238497,-500.0,9.996e-05,2]
[400532554,1767700238506,-999.3119379,9.996e-05,2]
[400532555,1767700238516,-500.0,9.996e-05,2]
[400532556,1767700238525,-500.0,9.996e-05,2]
[400532557,1767700238535,-500.0,9.996e-05,2]
[400532558,1767700238545,-500.0,9.996e-05,2]
[400532559,1767700238554,-500.0,9.996e-05,2]
[400532560,1767700238563,-500.0,9.996e-05,2]
[400532561,1767700238573,-500.0,9.996e-05,2]
[400532562,1767700238583,-500.0,9.996e-05,2]
[400532563,1767700238592,-500.0,9.996e-05,2]
[400532564,1767700238601,-500.0,9.996e-05,2]
[400532565,1767700238611,-500.0,9.996e-05,2]
[400532566,1767700238621,-500.0,9.996e-05,2]
[400532567,1767700238630,-500.0,9.996e-05,2]
[400532568,1767700238639,-500.0,9.996e-05,2]
[400532569,1767700238648,-500.0,9.996e-05,2]
[400532570,1767700238658,-500.0,9.996e-05,2]
[400532571,1767700238668,-500.0,9.996e-05,2]
[400532572,1767700238677,-500.0,9.996e-05,2]
[400532573,1767700238687,-500.0,9.996e-05,2]
[400532574,1767700238697,-500.0,9.996e-05,2]
[400532575,1767700238707,-500.0,9.996e-05,2]
[400532576,1767700238716,-500.0,9.996e-05,2]
[400532577,1767700238726,-500.0,9.996e-05,2]
[400532578,1767700238735,-500.0,9.996e-05,2]
[400532579,1767700238744,-500.0,9.996e-05,2]
[400532580,1767700238754,-500.0,9.996e-05,2]
[400532581,1767700238764,-500.0,9.996e-05,2]
[400532582,1767700238776,-388.19290229,9.996e-05,2]
[400532583,1767700238786,-500.0,9.996e-05,2]
[400532584,1767700238796,-500.0,9.996e-05,2]
[400532585,1767700238806,-500.0,9.996e-05,2]
[400532586,1767700238817,-500.0,9.996e-05,2]
[400532587,1767700238827,-500.0,9.996e-05,2]
[400532588,1767700238836,-500.0,9.996e-05,2]
[400532589,1767700238845,-500.0,9.996e-05,2]
[400532590,1767700238855,-500.0,9.996e-05,2]
[400532591,1767700238864,-500.0,9.996e-05,2]
[400532592,1767700238874,-500.0,9.996e-05,2]
[400532593,1767700238883,-500.0,9.996e-05,2]
[400532594,1767700238892,-500.0,9.996e-05,2]
[400532595,1767700238902,-500.0,9.996e-05,2]
[400532596,1767700238911,-500.0,9.996e-05,2]
[400532597,1767700238919,-500.0,9.996e-05,2]
[400532598,1767700238929,-500.0,9.996e-05,2]
[400532599,1767700238939,-500.0,9.996e-05,2]
[400532600,1767700238948,-500.0,9.996e-05,2]
[400532601,1767700238957,-500.0,9.996e-05,2]
[400532602,1767700238967,-500.0,9.996e-05,2]
[400532603,1767700238977,-500.0,9.996e-05,2]
[400532604,1767700238991,-500.0,9.996e-05,2]
[400532605,1767700239001,-500.0,9.996e-05,2]
[400532606,1767700239011,-300.0,9.997e-05,2]
[400532607,1767700239020,-50000.0,9.998e-05,2]
[400532608,1767700239030,-500.0,9.999e-05,2]
[400532609,1767700239042,-241500.89,0.0001,2]
[400532610,1767700239051,-466.222276,0.00010106,2]
[400532611,1767700239062,-500.0,0.00010273,2]
[400532612,1767700239072,-300.0,0.00010409,2]
[400532613,1767700239081,-300.0,0.00010409,2]
[400532614,1767700239091,-300.0,0.00010409,2]
[400532615,1767700239100,-300.0,0.00010409,2]
[400532616,1767700239110,-300.0,0.00010409,2]
[400532617,1767700239119,-300.0,0.00010409,2]
[400532618,1767700239128,-300.0,0.00010409,2]
[400532619,1767700239137,-300.0,0.00010409,2]
[400532620,1767700239147,-300.0,0.00010409,2]
[400532621,1767700239157,-300.0,0.00010409,2]
[400532622,1767700239286,-300.0,0.00010409,2]
[400532623,1767700239296,-300.0,0.00010409,2]
[400532624,1767700239305,-300.0,0.00010409,2]
[400532625,1767700239320,-300.0,0.00010409,2]
[400532626,1767700239335,-300.0,0.00010409,2]
[400532627,1767700239345,-152.52,0.00010469,2]
[400532628,1767700239355,-291.78649388,0.00010547,2]
[400532629,1767700239365,-2076.42331,0.00010959,2]
[400532630,1767700239375,-5936.502041,0.00010959,2]
[400532631,1767700239386,-500.0,0.00010959,2]
[400532632,1767700239396,-371.74729804,0.00010959,2]
[400532633,1767700239406,-500.0,0.00010959,2]
[400532634,1767700239417,-170.0,0.00010996,2]
[400532635,1767700239426,-420.0,0.00010996,2]
[400532636,1767700239437,-420.0,0.00010996,2]
[400532637,1767700239446,-1680.0,0.00010996,2]
[400532638,1767700239456,-420.0,0.00010996,2]
[400532639,1767700239466,-420.0,0.00010997,2]
[400532640,1767700239476,-203.36,0.00011213,2]
[400532641,1767700239485,-165.576,0.00011289,2]
[400532642,1767700239495,-13794.08388105,0.00011291,2]
[400532643,1767700239505,-600.0,0.00011515,2]
[400532644,1767700239515,-324.92300357,0.00011775,2]
[400532645,1767700239525,-165.11029521,0.00011918,2]
[400532646,1767700239535,-500.0,0.00011918,2]
[400532647,1767700239544,-500.0,0.00011918,2]
[400532649,1767700239554,-151.0,0.00012,2]
[400532651,1767700239563,-254.2,0.00012013,2]
[400532652,1767700239573,-500.0,0.00012055,2]
[400532654,1767700239583,-545.28665735,0.00012055,2]
[400532655,1767700239592,-587.0,0.00012095,2]
[400532656,1767700239602,-587.0,0.00012095,2]
[400532658,1767700239611,-1530.0,0.00012095,2]
[400532660,1767700239621,-301.0,0.00012096,2]
[400532661,1767700239630,-151.0,0.000121,2]
[400532662,1767700239640,-500.0,0.00012192,2]
[400532663,1767700239651,-182.69934205,0.00012192,2]
[400532664,1767700239661,-151.0,0.000122,2]
[400532665,1767700239670,-151.0,0.000122,2]
[400532666,1767700239679,-151.0,0.000122,2]
[400532667,1767700239689,-151.0,0.000122,2]
[400532668,1767700239698,-151.0,0.000122,2]
[400532669,1767700239707,-392.78,0.00012229,2]
[400532671,1767700239717,-5936.502041,0.00012229,2]
[400532673,1767700239726,-151.0,0.000123,2]
[400532674,1767700239736,-151.0,0.000123,2]
[400532675,1767700239745,-151.0,0.000123,2]
[400532676,1767700239754,-151.0,0.000123,2]
[400532677,1767700239763,-151.0,0.000123,2]
[400532679,1767700239774,-466.22227597,0.00012316,2]
[400532681,1767700239783,-1369.86,0.00012329,2]
[400532682,1767700239792,-1141.55,0.00012329,2]
[400532684,1767700239801,-951.29,0.00012329,2]
[400532685,1767700239810,-792.74,0.00012329,2]
[400532686,1767700239819,-792.74,0.00012329,2]
[400532687,1767700239833,-528.5,0.00012329,2]
[400532688,1767700239842,-500.0,0.00012329,2]
[400532689,1767700239852,-500.0,0.00012466,2]
[400532690,1767700239862,-500.0,0.00012603,2]
[400532691,1767700239872,-201.98709991,0.00012665,2]
[400532692,1767700239884,-720.0,0.00012667,2]
[400532693,1767700239895,-250.0,0.00012723,2]
[400532694,1767700239906,-500.0,0.0001274,2]
[400532695,1767700239917,-305.04,0.00012814,2]
[400532696,1767700239926,-500.0,0.00012877,2]
[400532697,1767700239935,-10528.4614168,0.000129,2]
[400532698,1767700239945,-30246.4287557,0.0001299,2]
[400532699,1767700239956,-500.0,0.00013014,2]
[400532700,1767700239965,-451.25145523,0.00013151,2]
[400532701,1767700239975,-500.0,0.00013273,2]
[400532703,1767700239987,-500.0,0.00013273,2]
[400532705,1767700239996,-500.0,0.00013273,2]
[400532707,1767700240006,-823.0,0.00013305,2]
[400532708,1767700240015,-2076.42331,0.00013614,2]
[400532709,1767700240024,-355.88,0.00013615,2]
[400532710,1767700240034,-300.0,0.00013673,2]
[400532711,1767700240043,-500.0,0.00013698,2]
[400532712,1767700240053,-500.0,0.00013698,2]
[400532713,1767700240062,-500.0,0.00013698,2]
[400532714,1767700240072,-500.0,0.00013698,2]
[400532715,1767700240082,-500.0,0.00013698,2]
[400532716,1767700240091,-500.0,0.00013698,2]
[400532717,1767700240101,-500.0,0.00013698,2]
[400532718,1767700240110,-500.0,0.00013698,2]
[400532719,1767700240119,-500.0,0.00013698,2]
[400532720,1767700240128,-500.0,0.00013698,2]
[400532721,1767700240137,-500.0,0.00013698,2]
[400532722,1767700240146,-500.0,0.00013698,2]
[400532723,1767700240155,-500.11958975,0.00013698,2]
[400532724,1767700240165,-500.0,0.00013698,2]
[400532725,1767700240177,-200.0,0.00013698,2]
[400532726,1767700240186,-500.0,0.00013698,2]
[400532727,1767700240196,-188.11386458,0.00013699,2]
[400532728,1767700240205,-1263.483109,0.00013699,2]
[400532729,1767700240214,-885.4942762,0.00013699,2]
[400532730,1767700240223,-220.37131177,0.00013699,2]
[400532731,1767700240233,-502.2601968,0.00013699,2]
[400532732,1767700240243,-338.10821472,0.00013699,2]
[400532733,1767700240254,-504.92626039,0.00013699,2]
[400532734,1767700240263,-500.0,0.00013699,2]
[400532735,1767700240272,-443.89072638,0.00013699,2]
[400532736,1767700240281,-501.0386878,0.00013699,2]
[400532737,1767700240291,-500.0,0.00013699,2]
[400532738,1767700240301,-505.14600849,0.00013699,2]
[400532739,1767700240310,-500.54517436,0.00013699,2]
[400532740,1767700240319,-500.81877837,0.00013699,2]
[400532741,1767700240329,-634.09365022,0.00013699,2]
[400532742,1767700240339,-501.00450759,0.00013699,2]
[400532743,1767700240348,-151.0,0.00013699,2]
[400532744,1767700240358,-151.0,0.00013699,2]
[400532745,1767700240367,-269.211237,0.00013699,2]
[400532746,1767700240378,-151.0,0.00013699,2]
[400532747,1767700240387,-151.0,0.00013699,2]
[400532748,1767700240396,-151.0,0.00013699,2]
[400532749,1767700240406,-151.0,0.00013699,2]
[400532750,1767700240415,-151.0,0.00013699,2]
[400532751,1767700240425,-193.274218,0.00013699,2]
[400532752,1767700240435,-352.313829,0.00013699,2]
[400532753,1767700240444,-352.313829,0.00013699,2]
[400532754,1767700240453,-352.313829,0.00013699,2]
[400532755,1767700240463,-352.313829,0.00013699,2]
[400532756,1767700240472,-156.236454,0.00013699,2]
[400532757,1767700240482,-151.0,0.00013699,2]
[400532758,1767700240491,-151.0,0.00013699,2]
[400532759,1767700240502,-958.3605912,0.00013699,2]
[400532760,1767700240511,-958.3605912,0.00013699,2]
[400532761,1767700240524,-958.3605912,0.00013699,2]
[400532762,1767700240534,-958.3605912,0.00013699,2]
[400532763,1767700240544,-958.3605912,0.00013699,2]
[400532764,1767700240554,-958.3605912,0.00013699,2]
[400532765,1767700240564,-958.3605912,0.00013699,2]
[400532766,1767700240574,-958.3605912,0.00013699,2]
[400532767,1767700240583,-958.3605912,0.00013699,2]
[400532768,1767700240593,-958.3605912,0.00013699,2]
[400532769,1767700240602,-958.3605912,0.00013699,2]
[400532770,1767700240612,-958.3605912,0.00013699,2]
[400532771,1767700240621,-958.3605912,0.00013699,2]
[400532772,1767700240631,-958.3605912,0.00013699,2]
[400532773,1767700240640,-958.3605912,0.00013699,2]
[400532774,1767700240651,-958.3605912,0.00013699,2]
[400532775,1767700240660,-958.3605912,0.00013699,2]
[400532776,1767700240669,-958.3605912,0.00013699,2]
[400532777,1767700240679,-958.3605912,0.00013699,2]
[400532778,1767700240688,-958.3605912,0.00013699,2]
[400532779,1767700240698,-958.3605912,0.00013699,2]
[400532780,1767700240708,-958.3605912,0.00013699,2]
[400532781,1767700240718,-958.3605912,0.00013699,2]
[400532782,1767700240727,-958.3605912,0.00013699,2]
[400532783,1767700240736,-958.3605912,0.00013699,2]
[400532784,1767700240746,-958.3605912,0.00013699,2]